Workbook

Sheet паспорт
A1: ПАТ "УКРТРАНСГАЗ" | G1: ПАСПОРТ ФІЗИКО-ХІМІЧНИХ ПОКАЗНИКІВ ПРИРОДНОГО ГАЗУ № 612
A2: Філія "УМГ "ХАРКІВТРАНСГАЗ" | G2: переданого Херсонським ЛВУМГ та прийнятого ПАТ " Херсонгаз" точка відбору ГРС м. Верхній Рогачик
A3: Херсонське ЛВУМГ
A4: Вимірювальна хіміко-аналітична лабораторія | M4: Маршрут № 687
A5: Свідоцтво про атестацію РЧ 161/2015 дійсне до 01.01.2019 р. | K5: по газопроводу ШДКРІ - Запорізька ГРЕС - Мелітополь | V5: за період з 01.03.2017р. по 31.03.2017р.
A7: Число місяця | B7: Компонентний склад, мол. % | N7: Фізико-хімічні показники газу обчислені на основі компонентного складу, 101,325 кПа | X7: Температура точки роси за вологою (Р = 3.92 МПа), °С | Y7: Температура точки роси за вуглеводнями, °С | Z7: Вміст сірководню, г/м3 | AA7: Вміст меркаптанової сірки, г/м3 | AB7: Вміст механічних домішок, г/м3
N8: Густина абсолютна, кг/м3,при 20 °С, | O8: Температура вимірювання/згоряння при 20/25°С
B9: метан, С1 | C9: етан, С2 | D9: пропан, С3 | E9: ізо-бутан, і-С4 | F9: н-бутан, н-С4 | G9: нео-пентан, нео-С5 | H9: ізо-пентан, і-С5 | I9: н-пентан, н-С5 | J9: гексани та вищі, С6+ | K9: кисень, О2 | L9: азот, N2 | M9: діоксид вуглецю, CО2 | O9: Теплота згоряння нижча | R9: Теплота згоряння вища | U9: Число Воббе вище
O10: ккал/м³ | P10: МДж/м³ | Q10: кВт⋅год/м³ | R10: ккал/м³ | S10: МДж/м³ | T10: кВт⋅год/м³ | U10: ккал/м³ | V10: МДж/м³ | W10: кВт⋅год/м³
A11: 1 | B11: 95.6015 | C11: 2.3119 | D11: 0.7331 | E11: 0.1057 | F11: 0.1234 | G11: 0.002 | H11: 0.0267 | I11: 0.0198 | J11: 0.0227 | K11: 0.0077 | L11: 0.8612 | M11: 0.1842 | N11: 0.7027 | O11: =P11*238.8459 -> 8197.597326 | P11: 34.3217 | Q11: =P11/3.6 -> 9.533805556 | R11: =S11*238.8459 -> 9089.280725 | S11: 38.055 | T11: =S11/3.6 -> 10.57083333 | U11: =V11*238.8459 -> 11899.8282 | V11: 49.8222 | W11: =V11/3.6 -> 13.8395 | X11: -21.9 | Y11: -16.2
A12: 2 | B12: 94.8186 | C12: 2.6802 | D12: 0.9892 | E12: 0.1397 | F12: 0.1995 | G12: 0.0022 | H12: 0.0459 | I12: 0.0377 | J12: 0.0357 | K12: 0.0039 | L12: 0.814 | M12: 0.2334 | N12: 0.7114 | O12: =P12*238.8459 -> 8286.23304 | P12: 34.6928 | Q12: =P12/3.6 -> 9.636888889 | R12: =S12*238.8459 -> 9184.269739 | S12: 38.4527 | T12: =S12/3.6 -> 10.68130556 | U12: =V12*238.8459 -> 11950.60684 | V12: 50.0348 | W12: =V12/3.6 -> 13.89855556 | X12: -18.7 | Y12: -13.6
A13: 3 | B13: 95.7433 | C13: 2.228 | D13: 0.6933 | E13: 0.1018 | F13: 0.1131 | G13: 0.0018 | H13: 0.0249 | I13: 0.019 | J13: 0.0275 | K13: 0.0074 | L13: 0.858 | M13: 0.1819 | N13: 0.7015 | O13: 8186.0133 | P13: 34.2732 | Q13: 9.520333333 | R13: =S13*238.8459 -> 9076.884622 | S13: 38.0031 | T13: 10.55641667 | U13: 11893.61821 | V13: 49.7962 | W13: 13.83227778 | X13: -18.7 | Y13: -13.7 | AD13: =IF(AC13=100,"ОК"," ") -> 
A14: 4 | O14: 8186.0133 | P14: 34.2732 | Q14: 9.520333333 | R14: 9076.884622 | S14: 38.0031 | T14: 10.55641667 | U14: 11893.61821 | V14: 49.7962 | W14: 13.83227778 | AD14: =IF(AC14=100,"ОК"," ") -> 
A15: 5 | O15: 8186.0133 | P15: 34.2732 | Q15: 9.520333333 | R15: 9076.884622 | S15: 38.0031 | T15: 10.55641667 | U15: 11893.61821 | V15: 49.7962 | W15: 13.83227778
A16: 6 | B16: 95.9559 | C16: 2.1747 | D16: 0.6561 | E16: 0.0977 | F16: 0.1028 | G16: 0.002 | H16: 0.0209 | I16: 0.0152 | J16: 0.0177 | K16: 0.0076 | L16: 0.7794 | M16: 0.1701 | N16: 0.6995 | O16: 8177.677578 | P16: 34.2383 | Q16: 9.510638889 | R16: 9068.238401 | S16: 37.9669 | T16: 10.54636111 | U16: 11899.25497 | V16: 49.8198 | W16: 13.83883333 | X16: -21.3 | Y16: -16.1
A17: 7 | B17: 95.9022 | C17: 2.2088 | D17: 0.6664 | E17: 0.0995 | F17: 0.1056 | G17: 0.0019 | H17: 0.0219 | I17: 0.016 | J17: 0.0203 | K17: 0.0065 | L17: 0.7825 | M17: 0.1682 | N17: 0.7 | O17: 8183.194918 | P17: 34.2614 | Q17: 9.517055556 | R17: 9074.161779 | S17: 37.9917 | T17: 10.55325 | U17: 11902.67047 | V17: 49.8341 | W17: 13.84280556 | X17: -21 | Y17: -16 | AB17: відсутні
A18: 8 | O18: 8183.194918 | P18: 34.2614 | Q18: 9.517055556 | R18: 9074.161779 | S18: 37.9917 | T18: 10.55325 | U18: 11902.67047 | V18: 49.8341 | W18: 13.84280556
A19: 9 | B19: 95.1883 | C19: 2.5492 | D19: 0.7809 | E19: 0.1126 | F19: 0.134 | G19: 0.0026 | H19: 0.0318 | I19: 0.0248 | J19: 0.0368 | K19: 0.0059 | L19: 0.9283 | M19: 0.2047 | N19: 0.7062 | O19: 8221.768531 | P19: 34.4229 | Q19: 9.561916667 | R19: 9114.90889 | S19: 38.1623 | T19: 10.60063889 | U19: 11903.88858 | V19: 49.8392 | W19: 13.84422222 | X19: -18.1 | Y19: -12
A20: 10 | B20: 95.1812 | C20: 2.5696 | D20: 0.7807 | E20: 0.1133 | F20: 0.1313 | G20: 0.0026 | H20: 0.0302 | I20: 0.0229 | J20: 0.0362 | K20: 0.0064 | L20: 0.9185 | M20: 0.2072 | N20: 0.7061 | O20: 8222.102915 | P20: 34.4243 | Q20: 9.562305556 | R20: 9115.291043 | S20: 38.1639 | T20: 10.60108333 | U20: 11904.70066 | V20: 49.8426 | W20: 13.84516667 | X20: -18 | Y20: -11.9 | Z20: < 0,0001 | AA20: 0.002
A21: 11 | O21: 8222.102915 | P21: 34.4243 | Q21: 9.562305556 | R21: 9115.291043 | S21: 38.1639 | T21: 10.60108333 | U21: 11904.70066 | V21: 49.8426 | W21: 13.84516667
A22: 12 | O22: 8222.102915 | P22: 34.4243 | Q22: 9.562305556 | R22: 9115.291043 | S22: 38.1639 | T22: 10.60108333 | U22: 11904.70066 | V22: 49.8426 | W22: 13.84516667
A23: 13 | B23: 95.631 | C23: 2.3521 | D23: 0.7085 | E23: 0.1065 | F23: 0.1162 | G23: 0.0023 | H23: 0.0254 | I23: 0.0188 | J23: 0.0252 | K23: 0.0101 | L23: 0.8215 | M23: 0.1823 | N23: 0.7023 | O23: 8199.269247 | P23: 34.3287 | Q23: 9.53575 | R23: 9091.215376 | S23: 38.0631 | T23: 10.57308333 | U23: 11905.27389 | V23: 49.845 | W23: 13.84583333 | X23: -20.4 | Y23: -15.3
A24: 14 | B24: 95.5912 | C24: 2.3792 | D24: 0.7205 | E24: 0.1086 | F24: 0.1181 | G24: 0.0022 | H24: 0.0256 | I24: 0.0187 | J24: 0.0236 | K24: 0.0105 | L24: 0.8164 | M24: 0.1854 | N24: 0.7027 | O24: 8202.828051 | P24: 34.3436 | Q24: 9.539888889 | R24: 9095.013026 | S24: 38.079 | T24: 10.5775 | U24: 11907.4235 | V24: 49.854 | W24: 13.84833333 | X24: -22 | Y24: -16.3
A25: 15 | B25: 95.2233 | C25: 2.5544 | D25: 0.7793 | E25: 0.1144 | F25: 0.1306 | G25: 0.0024 | H25: 0.0293 | I25: 0.0219 | J25: 0.0341 | K25: 0.0051 | L25: 0.8968 | M25: 0.2084 | N25: 0.7058 | O25: 8221.649108 | P25: 34.4224 | Q25: 9.561777778 | R25: 9114.885005 | S25: 38.1622 | T25: 10.60061111 | U25: 11906.75473 | V25: 49.8512 | W25: 13.84755556 | X25: -21.8 | Y25: -16
A26: 16 | B26: 95.1283 | C26: 2.6034 | D26: 0.8094 | E26: 0.1203 | F26: 0.1377 | G26: 0.0025 | H26: 0.0323 | I26: 0.0251 | J26: 0.0383 | K26: 0.0075 | L26: 0.8844 | M26: 0.2109 | N26: 0.707 | O26: 8234.284056 | P26: 34.4753 | Q26: 9.576472222 | R26: 9128.451452 | S26: 38.219 | T26: 10.61638889 | U26: 11914.99491 | V26: 49.8857 | W26: 13.85713889 | X26: -19.9 | Y26: -14.7
A27: 17 | B27: 94.9803 | C27: 2.6955 | D27: 0.8345 | E27: 0.1229 | F27: 0.1409 | G27: 0.0027 | H27: 0.0316 | I27: 0.0241 | J27: 0.0376 | K27: 0.008 | L27: 0.9029 | M27: 0.2193 | N27: 0.708 | O27: 8241.449433 | P27: 34.5053 | Q27: 9.584805556 | R27: 9136.022867 | S27: 38.2507 | T27: 10.62519444 | U27: 11915.85476 | V27: 49.8893 | W27: 13.85813889 | X27: -20.8 | Y27: -14.6
A28: 18 | O28: 8241.449433 | P28: 34.5053 | Q28: 9.584805556 | R28: 9136.022867 | S28: 38.2507 | T28: 10.62519444 | U28: 11915.85476 | V28: 49.8893 | W28: 13.85813889
A29: 19 | O29: 8241.449433 | P29: 34.5053 | Q29: 9.584805556 | R29: 9136.022867 | S29: 38.2507 | T29: 10.62519444 | U29: 11915.85476 | V29: 49.8893 | W29: 13.85813889
A30: 20 | B30: 94.9766 | C30: 2.7184 | D30: 0.8352 | E30: 0.1223 | F30: 0.1378 | G30: 0.0026 | H30: 0.0306 | I30: 0.023 | J30: 0.0336 | K30: 0.0043 | L30: 0.8906 | M30: 0.2249 | N30: 0.7079 | O30: 8241.401664 | P30: 34.5051 | Q30: 9.58475 | R30: 9135.998983 | S30: 38.2506 | T30: 10.62516667 | U30: 11916.7146 | V30: 49.8929 | W30: 13.85913889 | X30: -20.7 | Y30: -15.5 | AD30: =IF(AC30=100,"ОК"," ") -> 
A31: 21 | B31: 95.0381 | C31: 2.6841 | D31: 0.8291 | E31: 0.1222 | F31: 0.1388 | G31: 0.0024 | H31: 0.0308 | I31: 0.0231 | J31: 0.0325 | K31: 0.007 | L31: 0.878 | M31: 0.214 | N31: 0.7075 | O31: 8239.968589 | P31: 34.4991 | Q31: 9.583083333 | R31: 9134.542023 | S31: 38.2445 | T31: 10.62347222 | U31: 11918.72091 | V31: 49.9013 | W31: 13.86147222 | X31: -19.6 | Y31: -14.6
A32: 22 | B32: 94.9934 | C32: 2.7049 | D32: 0.8416 | E32: 0.1247 | F32: 0.1416 | G32: 0.0025 | H32: 0.0315 | I32: 0.0237 | J32: 0.0357 | K32: 0.007 | L32: 0.8778 | M32: 0.2154 | N32: 0.708 | O32: 8245.079891 | P32: 34.5205 | Q32: 9.589027778 | R32: 9140.011594 | S32: 38.2674 | T32: 10.62983333 | U32: 11921.56318 | V32: 49.9132 | W32: 13.86477778 | X32: -18.6 | Y32: -13
A33: 23 | B33: 95.1558 | C33: 2.657 | D33: 0.8171 | E33: 0.1223 | F33: 0.1355 | G33: 0.0025 | H33: 0.029 | I33: 0.0217 | J33: 0.0304 | K33: 0.0074 | L33: 0.8169 | M33: 0.2044 | N33: 0.7066 | O33: 8240.422396 | P33: 34.501 | Q33: 9.583611111 | R33: 9135.25856 | S33: 38.2475 | T33: 10.62430556 | U33: 11927.24771 | V33: 49.937 | W33: 13.87138889 | X33: -20.4 | Y33: -14.1 | AB33: відсутні | AD33: =IF(AC33=100,"ОК"," ") -> 
A34: 24 | B34: 95.3461 | C34: 2.5363 | D34: 0.7875 | E34: 0.119 | F34: 0.1297 | G34: 0.0024 | H34: 0.0278 | I34: 0.0206 | J34: 0.0275 | K34: 0.0074 | L34: 0.8028 | M34: 0.193 | N34: 0.705 | O34: 8228.026294 | P34: 34.4491 | Q34: 9.569194444 | R34: 9122.050382 | S34: 38.1922 | T34: 10.60894444 | U34: 11923.21121 | V34: 49.9201 | W34: 13.86669444 | X34: -21.7 | Y34: -15.2 | Z34: < 0,0001 | AA34: 0.0028
A35: 25 | O35: 8228.026294 | P35: 34.4491 | Q35: 9.569194444 | R35: 9122.050382 | S35: 38.1922 | T35: 10.60894444 | U35: 11923.21121 | V35: 49.9201 | W35: 13.86669444
A36: 26 | O36: 8228.026294 | P36: 34.4491 | Q36: 9.569194444 | R36: 9122.050382 | S36: 38.1922 | T36: 10.60894444 | U36: 11923.21121 | V36: 49.9201 | W36: 13.86669444
A37: 27 | B37: 95.0779 | C37: 2.7179 | D37: 0.8385 | E37: 0.1264 | F37: 0.1381 | G37: 0.0025 | H37: 0.0293 | I37: 0.0217 | J37: 0.0291 | K37: 0.0073 | L37: 0.7968 | M37: 0.2146 | N37: 0.7073 | O37: 8248.590926 | P37: 34.5352 | Q37: 9.593111111 | R37: 9144.024205 | S37: 38.2842 | T37: 10.6345 | U37: 11932.66951 | V37: 49.9597 | W37: 13.87769444 | X37: -21.2 | Y37: -14.6
A38: 28 | B38: 95.2868 | C38: 2.6469 | D38: 0.817 | E38: 0.1258 | F38: 0.1328 | G38: 0.0025 | H38: 0.0274 | I38: 0.0201 | J38: 0.0263 | K38: 0.0027 | L38: 0.7094 | M38: 0.2023 | N38: 0.7057 | O38: 8247.038427 | P38: 34.5287 | Q38: 9.591305556 | R38: 9142.686668 | S38: 38.2786 | T38: 10.63294444 | U38: 11943.96692 | V38: 50.007 | W38: 13.89083333 | X38: -20.7 | Y38: -14
A39: 29 | B39: 95.2512 | C39: 2.6558 | D39: 0.8182 | E39: 0.1261 | F39: 0.1326 | G39: 0.0023 | H39: 0.0272 | I39: 0.0199 | J39: 0.0255 | K39: 0.0077 | L39: 0.7286 | M39: 0.2048 | N39: 0.7059 | O39: 8245.223198 | P39: 34.5211 | Q39: 9.589194444 | R39: 9140.656478 | S39: 38.2701 | T39: 10.63058333 | U39: 11939.73935 | V39: 49.9893 | W39: 13.88591667 | X39: -23 | Y39: -16.9
A40: 30 | B40: 94.7305 | C40: 2.8553 | D40: 0.8933 | E40: 0.1306 | F40: 0.1533 | G40: 0.0027 | H40: 0.0347 | I40: 0.0267 | J40: 0.0418 | K40: 0.0022 | L40: 0.8953 | M40: 0.2336 | N40: 0.7104 | O40: 8265.142947 | P40: 34.6045 | Q40: 9.612361111 | R40: 9161.388302 | S40: 38.3569 | T40: 10.65469444 | U40: 11929.30178 | V40: 49.9456 | W40: 13.87377778 | X40: -18.1 | Y40: -11.2
A41: 31 | B41: 94.9512 | C41: 2.74 | D41: 0.8566 | E41: 0.1297 | F41: 0.1464 | G41: 0.0027 | H41: 0.0334 | I41: 0.0254 | J41: 0.0734 | K41: 0.0069 | L41: 0.8071 | M41: 0.2272 | N41: 0.7095 | O41: =P41*238.8459 -> 8268.247943 | P41: 34.6175 | Q41: 9.615972222 | R41: =S41*238.8459 -> 9165.018759 | S41: 38.3721 | T41: 10.65891667 | U41: =V41*238.8459 -> 11941.24408 | V41: 49.9956 | W41: =V41/3.6 -> 13.88766667 | X41: -19.9 | Y41: -13.1
A42: Рівень одоризації відповідає чинним нормативним документам | O42: =SUMPRODUCT(O11:O41,' розрахунок'!D6:D36)/' розрахунок'!D37 -> 8224.28527 | P42: =SUMPRODUCT(P11:P41,' розрахунок'!D6:D36)/' розрахунок'!D37 -> 34.43343708 | Q42: =SUMPRODUCT(Q11:Q41,' розрахунок'!D6:D36)/' розрахунок'!D37 -> 9.564843633 | R42: =SUMPRODUCT(R11:R41,' розрахунок'!D6:D36)/' розрахунок'!D37 -> 9117.867985 | S42: =SUMPRODUCT(S11:S41,' розрахунок'!D6:D36)/' розрахунок'!D37 -> 38.17468914 | T42: =SUMPRODUCT(T11:T41,' розрахунок'!D6:D36)/' розрахунок'!D37 -> 10.60408032
H43: Середньозважене значення теплоти згоряння:
B46: Начальник управління Херсонського ЛВУМГ Доскоч М.В. 03.04.2017
C47: Підрозділу підприємства, якому підпорядкована лабораторія | O47: прізвище | T47: підпис | Y47: дата
B48: Завідувач лабораторії Камишанова О.С. 03.04.2017
C49: Лабораторія, де здійснювалось вимірювання газу | O49: прізвище | T49: підпис | Y49: дата
B50: Начальник служби ГВ та М Скавронський Є.К. 03.04.2017
C51: Підрозділу, відповідального за облік газу за маршрутом | O51: прізвище | T51: підпис | Y51: дата

Sheet розрахунок (hidden)
C2: Додаток до Паспорту фізико-хімічних показників природного газу по маршруту № 687
A3: Число місяця | B3: Теплота згоряння вища, МДж/м3 | C3: ХЕРСОНСЬКА область | D3: Загальний обсяг газу, м3
C5: ГРС м.Верхній Рогачик
A6: 1 | B6: 38.055 | C6: 11.455 | D6: =SUM(C6:C6) -> 11.455
A7: 2 | B7: 38.4527 | C7: 10.77 | D7: 10.77
A8: 3 | B8: 38.0031 | C8: 10.3 | D8: 10.3
A9: 4 | B9: 38.0031 | C9: 10.093 | D9: 10.093
A10: 5 | B10: 38.0031 | C10: 10.355 | D10: 10.355
A11: 6 | B11: 37.9669 | C11: 10.391 | D11: 10.391
A12: 7 | B12: 37.9917 | C12: 9.458 | D12: 9.458
A13: 8 | B13: 37.9917 | C13: 10.569 | D13: 10.569
A14: 9 | B14: 38.1623 | C14: 9.917 | D14: 9.917
A15: 10 | B15: 38.1639 | C15: 9.432 | D15: 9.432
A16: 11 | B16: 38.1639 | C16: 9.792 | D16: 9.792
A17: 12 | B17: 38.1639 | C17: 10.507 | D17: 10.507
A18: 13 | B18: 38.0631 | C18: 9.784 | D18: 9.784
A19: 14 | B19: 38.079 | C19: 9.658 | D19: 9.658
A20: 15 | B20: 38.1622 | C20: 10.285 | D20: 10.285
A21: 16 | B21: 38.219 | C21: 10.357 | D21: 10.357
A22: 17 | B22: 38.2507 | C22: 10.374 | D22: 10.374
A23: 18 | B23: 38.2507 | C23: 10.531 | D23: 10.531
A24: 19 | B24: 38.2507 | C24: 10.674 | D24: 10.674
A25: 20 | B25: 38.2506 | C25: 10.596 | D25: 10.596
A26: 21 | B26: 38.2445 | C26: 9.955 | D26: 9.955
A27: 22 | B27: 38.2674 | C27: 9.273 | D27: 9.273
A28: 23 | B28: 38.2475 | C28: 8.271 | D28: 8.271
A29: 24 | B29: 38.1922 | C29: 8.281 | D29: 8.281
A30: 25 | B30: 38.1922 | C30: 7.719 | D30: 7.719
A31: 26 | B31: 38.1922 | C31: 9.277 | D31: 9.277
A32: 27 | B32: 38.2842 | C32: 10.247 | D32: 10.247
A33: 28 | B33: 38.2786 | C33: 9.026 | D33: 9.026
A34: 29 | B34: 38.2701 | C34: 7.438 | D34: 7.438
A35: 30 | B35: 38.3569 | C35: 7.787 | D35: 7.787
A36: 31 | B36: 38.3721 | C36: 8.171 | D36: 8.171
A37: Загальний обсяг газу, м3 | C37: =SUM(C6:C36) -> 300.743 | D37: =SUM(D6:D36) -> 300.743
A38: Енергія, МДж | C38: =SUMPRODUCT(B6:B36,C6:C36) -> 11480.77054 | D38: =SUMPRODUCT(B6:B36,D6:D36) -> 11480.77054
A39: Теплота згоряння (середньозважене значення за місяць), МДж/м³ | C39: =C38/C37 -> 38.17468914 | D39: =D38/D37 -> 38.17468914
A40: Теплота згоряння (середньозважене значення за місяць), ккал/м³ | C40: =C39*238.8459 -> 9117.867985 | D40: =D39*238.8459 -> 9117.867985
A41: Теплота згоряння (середньозважене значення за місяць), кВт*год./м³ | C41: =C39/3.6 -> 10.60408032 | D41: 10.60408032

Sheet додаток
A2: Додаток до Паспорту фізико-хімічних показників природного газу № 687
A4: Область | B4: ГРС, прямий споживач | C4: Cередньозважене значення вищої теплоти згоряння
C5: МДж/м³ | D5: ккал/м³ | E5: кВт*год./м³
A6: Херсонська область | B6: ГРСм. Верхній Рогачик | C6: 38.17 | D6: 9118 | E6: 10.6
A7: Середньозважене значення вищої теплоти згоряння по маршруту № 687 | C7: 38.17 | D7: 9118 | E7: 10.6
A11: Начальника управління Херсонського ЛВУМГ Доскоч М.В. | F11: 2017-04-03
A12: Підрозділу підприємства, якому підпорядкована лабораторія | D12: прізвище | E12: підпис | F12: дата
A14: Завідувач лабораторії Камишанова О.С. | F14: 2017-04-03
A15: Лабораторія, де здійснювалось вимірювання газу | D15: прізвище | E15: підпис | F15: дата
A17: Начальник служби ГВ та М Скавронський Є.К. | F17: 2017-04-03
A18: Підрозділу, відповідального за облік газу за маршрутом | D18: прізвище | E18: підпис | F18: дата

Sheet variablesList (hidden)
A1: 3 | B1: x:\gaysin | C1: 10, 11, 24, 25, 127, 128, 132, 180, 207, 215 | D1: x:\
B2: x:\Illinci
B3: x:\Talne
